[Event "Rapid Tournament (RAP)"]
[Site "Biel, Switzerland"]
[Date "2026.07.12"]
[Round "3.51"]
[White "Hajduk, Tomasz"]
[Black "Gheorghiu, Gabriel-Ion"]
[Result "1-0"]
[TimeControl "15 + 5"]
[WhiteTitle "-"]
[BlackTitle "-"]
[WhiteFideId "21811415"]
[BlackFideId "1248820"]
[WhiteElo "1879"]
[BlackElo "1679"]

1. e4 {[%clk 00:15:07]} {[%emt 00:00:03]} d5 {[%clk 00:15:06]} {[%emt
00:00:04]} 2. exd5 {[%clk 00:15:10]} {[%emt 00:00:03]} Nf6 {[%clk 00:15:08]}
{[%emt 00:00:01]} 3. d4 {[%clk 00:15:09]} {[%emt 00:00:06]} Bg4 {[%clk
00:15:11]} {[%emt 00:00:03]} 4. Nf3 {[%clk 00:15:03]} {[%emt 00:00:11]} Qxd5
{[%clk 00:15:09]} {[%emt 00:00:06]} 5. Be2 {[%clk 00:14:51]} {[%emt 00:00:18]}
Nc6 {[%clk 00:14:58]} {[%emt 00:00:17]} 6. c4 {[%clk 00:14:46]} {[%emt
00:00:09]} Qh5 {[%clk 00:14:58]} {[%emt 00:00:05]} 7. d5 {[%clk 00:14:36]}
{[%emt 00:00:15]} O-O-O {[%clk 00:14:55]} {[%emt 00:00:08]} 8. Qa4 {[%clk
00:12:36]} {[%emt 00:02:05]} Ne5 {[%clk 00:13:34]} {[%emt 00:01:26]} 9. Nbd2
{[%clk 00:11:27]} {[%emt 00:01:14]} Kb8 {[%clk 00:13:04]} {[%emt 00:00:35]} 10.
O-O {[%clk 00:09:29]} {[%emt 00:02:03]} e6 {[%clk 00:12:54]} {[%emt 00:00:15]}
11. Nxe5 {[%clk 00:06:25]} {[%emt 00:03:09]} Bxe2 {[%clk 00:12:42]} {[%emt
00:00:11]} 12. Nc6+ {[%clk 00:05:48]} {[%emt 00:00:48]} bxc6 {[%clk 00:12:28]}
{[%emt 00:00:14]} 13. dxc6 {[%clk 00:05:50]} {[%emt 00:00:08]} Qc5 {[%clk
00:11:38]} {[%emt 00:00:54]} 14. b4 {[%clk 00:05:49]} {[%emt 00:00:07]} Qxb4
{[%clk 00:10:42]} {[%emt 00:01:02]} 15. Rb1 {[%clk 00:05:50]} {[%emt 00:00:04]}
a5 {[%clk 00:10:37]} {[%emt 00:00:10]} 16. Rxb4+ {[%clk 00:05:50]} {[%emt
00:00:04]} Bxb4 {[%clk 00:10:35]} {[%emt 00:00:07]} 17. Qb5+ {[%clk 00:05:52]}
{[%emt 00:00:03]} 1-0

[Event "Rapid Tournament (RAP)"]
[Site "Biel, Switzerland"]
[Date "2026.07.12"]
[Round "3.52"]
[White "Huang, Hsuan-Chen"]
[Black "Berger, Vincent"]
[Result "1-0"]
[TimeControl "15 + 5"]
[WhiteTitle "-"]
[BlackTitle "-"]
[WhiteFideId "16303121"]
[BlackFideId "1317822"]
[WhiteElo "1648"]
[BlackElo "1877"]

1. d4 {[%clk 00:15:08]} {[%emt 00:00:03]} d5 {[%clk 00:13:37]} {[%emt
00:01:33]} 2. Nf3 {[%clk 00:15:10]} {[%emt 00:00:03]} Nf6 {[%clk 00:13:39]}
{[%emt 00:00:03]} 3. e3 {[%clk 00:15:13]} {[%emt 00:00:02]} c5 {[%clk
00:13:27]} {[%emt 00:00:18]} 4. c3 {[%clk 00:15:13]} {[%emt 00:00:04]} Nc6
{[%clk 00:13:28]} {[%emt 00:00:04]} 5. Nbd2 {[%clk 00:15:15]} {[%emt 00:00:02]}
cxd4 {[%clk 00:13:09]} {[%emt 00:00:25]} 6. exd4 {[%clk 00:15:18]} {[%emt
00:00:02]} e6 {[%clk 00:12:53]} {[%emt 00:00:21]} 7. Bd3 {[%clk 00:15:10]}
{[%emt 00:00:12]} Bd6 {[%clk 00:12:49]} {[%emt 00:00:10]} 8. O-O {[%clk
00:15:12]} {[%emt 00:00:03]} O-O {[%clk 00:12:52]} {[%emt 00:00:01]} 9. Re1
{[%clk 00:15:14]} {[%emt 00:00:03]} Re8 {[%clk 00:12:51]} {[%emt 00:00:07]} 10.
Ne5 {[%clk 00:15:12]} {[%emt 00:00:07]} Bd7 {[%clk 00:12:23]} {[%emt 00:00:33]}
11. Ndf3 {[%clk 00:14:50]} {[%emt 00:00:25]} Rb8 {[%clk 00:12:22]} {[%emt
00:00:07]} 12. a4 {[%clk 00:14:53]} {[%emt 00:00:02]} a6 {[%clk 00:12:19]}
{[%emt 00:00:09]} 13. Bf4 {[%clk 00:09:03]} {[%emt 00:05:54]} Qc7 {[%clk
00:09:36]} {[%emt 00:02:48]} 14. Re3 {[%clk 00:08:01]} {[%emt 00:01:07]} Ne7
{[%clk 00:06:57]} {[%emt 00:02:45]} 15. Ng5 {[%clk 00:07:40]} {[%emt 00:00:25]}
Rf8 {[%clk 00:06:48]} {[%emt 00:00:14]} 16. Nxh7 {[%clk 00:07:10]} {[%emt
00:00:35]} Ne4 {[%clk 00:03:30]} {[%emt 00:03:24]} 17. Bxe4 {[%clk 00:06:13]}
{[%emt 00:01:01]} dxe4 {[%clk 00:03:33]} {[%emt 00:00:02]} 18. Nf6+ {[%clk
00:04:01]} {[%emt 00:02:16]} 1-0

[Event "Rapid Tournament (RAP)"]
[Site "Biel, Switzerland"]
[Date "2026.07.12"]
[Round "3.53"]
[White "Cloete, Willem Francois"]
[Black "Materia, Matteo"]
[Result "0-1"]
[TimeControl "15 + 5"]
[WhiteTitle "-"]
[BlackTitle "-"]
[WhiteFideId "14358387"]
[BlackFideId "45150575"]
[WhiteElo "1584"]
[BlackElo "1868"]

1. e4 {[%clk 00:15:08]} e5 {[%clk 00:15:05]} 2. Nf3 {[%clk 00:15:08]} Nc6
{[%clk 00:15:13]} {[%emt 00:47:00]} 3. d4 {[%clk 00:15:07]} exd4 {[%clk
00:15:17]} {[%emt 00:00:03]} 4. Bc4 {[%clk 00:15:10]} Nf6 {[%clk 00:15:18]}
{[%emt 00:00:06]} 5. O-O {[%clk 00:15:11]} Nxe4 {[%clk 00:15:13]} {[%emt
00:00:13]} 6. Re1 {[%clk 00:15:13]} d5 {[%clk 00:15:17]} 7. Bxd5 {[%clk
00:15:13]} Qxd5 {[%clk 00:15:21]} {[%emt 00:00:08]} 8. Nc3 {[%clk 00:15:18]}
Qd7 {[%clk 00:15:21]} {[%emt 00:00:07]} 9. Nxe4 {[%clk 00:15:19]} Be7 {[%clk
00:15:23]} {[%emt 00:00:07]} 10. Bg5 {[%clk 00:15:11]} O-O {[%clk 00:15:23]}
{[%emt 00:00:17]} 11. Bxe7 {[%clk 00:14:42]} Qxe7 {[%clk 00:15:26]} {[%emt
00:00:38]} 12. Nxd4 {[%clk 00:14:39]} Bd7 {[%clk 00:15:26]} 13. c3 {[%clk
00:14:39]} Rad8 {[%clk 00:15:26]} 14. Qh5 {[%clk 00:14:39]} h6 {[%clk
00:15:26]} 15. f4 {[%clk 00:14:39]} Nxd4 {[%clk 00:04:52]} {[%emt 00:16:40]} 16.
Ng5 {[%clk 00:07:45]} Qc5 {[%clk 00:04:12]} {[%emt 00:02:22]} 17. Re5 {[%clk
00:06:08]} Nf3+ {[%clk 00:04:07]} {[%emt 00:01:50]} 18. Kh1 {[%clk 00:05:57]}
Nxe5 {[%clk 00:04:07]} 19. Ne4 {[%clk 00:05:57]} Qe3 {[%clk 00:04:07]} 0-1

[Event "Rapid Tournament (RAP)"]
[Site "Biel, Switzerland"]
[Date "2026.07.12"]
[Round "3.54"]
[White "Bonanomi, Silvan"]
[Black "Leveque, Olivier"]
[Result "1-0"]
[TimeControl "15 + 5"]
[WhiteTitle "-"]
[BlackTitle "-"]
[WhiteFideId "1352644"]
[BlackFideId "1369806"]
[WhiteElo "1867"]
[BlackElo "1570"]

1. e4 {[%clk 00:15:06]} {[%emt 00:00:02]} c5 {[%clk 00:15:08]} {[%emt
00:00:03]} 2. c3 {[%clk 00:15:08]} {[%emt 00:00:04]} Nc6 {[%clk 00:15:01]}
{[%emt 00:00:11]} 3. d4 {[%clk 00:15:06]} {[%emt 00:00:07]} d6 {[%clk
00:15:03]} {[%emt 00:00:03]} 4. Nf3 {[%clk 00:14:54]} {[%emt 00:00:16]} a6
{[%clk 00:14:53]} {[%emt 00:00:15]} 5. h3 {[%clk 00:14:50]} {[%emt 00:00:09]}
g6 {[%clk 00:14:55]} {[%emt 00:00:02]} 6. Bc4 {[%clk 00:14:20]} {[%emt
00:00:36]} Bg7 {[%clk 00:14:53]} {[%emt 00:00:07]} 7. O-O {[%clk 00:14:21]}
{[%emt 00:00:04]} Nf6 {[%clk 00:14:55]} {[%emt 00:00:03]} 8. e5 {[%clk
00:13:41]} {[%emt 00:00:45]} dxe5 {[%clk 00:14:46]} {[%emt 00:00:14]} 9. dxe5
{[%clk 00:13:43]} {[%emt 00:00:03]} Qxd1 {[%clk 00:14:37]} {[%emt 00:00:14]} 10.
Rxd1 {[%clk 00:13:46]} {[%emt 00:00:01]} Ne4 {[%clk 00:13:56]} {[%emt
00:00:46]} 11. Bd5 {[%clk 00:13:21]} {[%emt 00:00:29]} f5 {[%clk 00:13:23]}
{[%emt 00:00:39]} 12. exf6 {[%clk 00:12:02]} {[%emt 00:01:25]} Nxf6 {[%clk
00:13:25]} {[%emt 00:00:02]} 13. Bxc6+ {[%clk 00:12:04]} {[%emt 00:00:03]} bxc6
{[%clk 00:13:26]} {[%emt 00:00:04]} 14. Be3 {[%clk 00:12:04]} {[%emt 00:00:05]}
c4 {[%clk 00:13:01]} {[%emt 00:00:31]} 15. Na3 {[%clk 00:11:57]} {[%emt
00:00:12]} O-O {[%clk 00:11:59]} {[%emt 00:01:07]} 16. Nxc4 {[%clk 00:11:47]}
{[%emt 00:00:15]} Ne4 {[%clk 00:12:01]} {[%emt 00:00:02]} 17. Nce5 {[%clk
00:11:43]} {[%emt 00:00:09]} Bb7 {[%clk 00:08:28]} {[%emt 00:03:39]} 18. Rd7
{[%clk 00:11:27]} {[%emt 00:00:20]} Nd6 {[%clk 00:06:47]} {[%emt 00:01:46]} 19.
Rxe7 {[%clk 00:10:42]} {[%emt 00:00:50]} Rae8 {[%clk 00:06:45]} {[%emt
00:00:07]} 20. Rd7 {[%clk 00:09:12]} {[%emt 00:01:35]} Bxe5 {[%clk 00:05:28]}
{[%emt 00:01:22]} 21. Nxe5 {[%clk 00:09:14]} {[%emt 00:00:03]} Rxe5 {[%clk
00:05:32]} {[%emt 00:00:01]} 22. Rxd6 {[%clk 00:09:17]} {[%emt 00:00:03]} Rb5
{[%clk 00:05:16]} {[%emt 00:00:21]} 23. b3 {[%clk 00:09:16]} {[%emt 00:00:06]}
Ba8 {[%clk 00:04:34]} {[%emt 00:00:46]} 24. Rd7 {[%clk 00:09:15]} {[%emt
00:00:07]} Rb7 {[%clk 00:04:14]} {[%emt 00:00:25]} 25. Rad1 {[%clk 00:09:16]}
{[%emt 00:00:04]} Rxd7 {[%clk 00:04:08]} {[%emt 00:00:11]} 26. Rxd7 {[%clk
00:09:19]} {[%emt 00:00:02]} Re8 {[%clk 00:02:47]} {[%emt 00:01:26]} 27. Ra7
{[%clk 00:09:20]} {[%emt 00:00:04]} Rd8 {[%clk 00:02:20]} {[%emt 00:00:32]} 28.
Rxa6 {[%clk 00:09:19]} {[%emt 00:00:05]} Kf7 {[%clk 00:02:00]} {[%emt
00:00:26]} 29. Ra7+ {[%clk 00:09:21]} {[%emt 00:00:02]} Ke6 {[%clk 00:02:02]}
{[%emt 00:00:02]} 30. Rxh7 {[%clk 00:09:22]} {[%emt 00:00:06]} Kf5 {[%clk
00:01:59]} {[%emt 00:00:09]} 31. Kf1 {[%clk 00:09:03]} {[%emt 00:00:23]} c5
{[%clk 00:01:44]} {[%emt 00:00:20]} 32. Bxc5 {[%clk 00:08:55]} {[%emt
00:00:14]} Be4 {[%clk 00:01:48]} 33. Bd4 {[%clk 00:08:51]} {[%emt 00:00:08]}
Bd3+ {[%clk 00:01:45]} {[%emt 00:00:08]} 34. Ke1 {[%clk 00:08:49]} {[%emt
00:00:07]} Re8+ {[%clk 00:01:49]} {[%emt 00:00:02]} 35. Kd2 {[%clk 00:08:46]}
{[%emt 00:00:07]} Ba6 {[%clk 00:01:37]} {[%emt 00:00:15]} 36. Rf7+ {[%clk
00:08:48]} {[%emt 00:00:04]} Kg5 {[%clk 00:01:32]} {[%emt 00:00:11]} 37. Be3+
{[%clk 00:08:50]} {[%emt 00:00:04]} Kh5 {[%clk 00:01:34]} {[%emt 00:00:02]} 38.
Rh7# {[%emt 00:00:04]} 1-0

[Event "Rapid Tournament (RAP)"]
[Site "Biel, Switzerland"]
[Date "2026.07.12"]
[Round "4.1"]
[White "Arjun, Kalyan"]
[Black "Amonatov, Farrukh"]
[Result "1-0"]
[TimeControl "15 + 5"]
[WhiteTitle "-"]
[BlackTitle "-"]
[WhiteFideId "35018701"]
[BlackFideId "14700077"]
[WhiteElo "2390"]
[BlackElo "2593"]

1. e4 {[%clk 00:15:09]} {[%emt 00:48:55]} c5 {[%clk 00:15:09]} {[%emt
00:00:01]} 2. Nf3 {[%clk 00:15:12]} {[%emt 00:00:02]} d6 {[%clk 00:15:13]} 3.
d4 {[%clk 00:15:15]} {[%emt 00:00:04]} cxd4 {[%clk 00:15:17]} 4. Nxd4 {[%clk
00:15:18]} {[%emt 00:00:02]} Nf6 {[%clk 00:15:22]} 5. Nc3 {[%clk 00:15:21]}
{[%emt 00:00:04]} a6 {[%clk 00:15:26]} 6. Be2 {[%clk 00:15:23]} {[%emt
00:00:01]} e5 {[%clk 00:15:29]} {[%emt 00:00:02]} 7. Nb3 {[%clk 00:15:26]}
{[%emt 00:00:02]} Be7 {[%clk 00:15:25]} {[%emt 00:00:09]} 8. Be3 {[%clk
00:15:29]} {[%emt 00:00:02]} Be6 {[%clk 00:15:27]} {[%emt 00:00:02]} 9. O-O
{[%clk 00:15:31]} {[%emt 00:00:03]} O-O {[%clk 00:15:29]} {[%emt 00:00:04]} 10.
Re1 {[%clk 00:15:33]} {[%emt 00:00:02]} Nbd7 {[%clk 00:15:29]} {[%emt
00:00:05]} 11. a4 {[%clk 00:15:37]} {[%emt 00:00:02]} Rc8 {[%clk 00:15:28]}
{[%emt 00:00:06]} 12. a5 {[%clk 00:15:40]} {[%emt 00:00:02]} Rxc3 {[%clk
00:15:11]} {[%emt 00:00:22]} 13. bxc3 {[%clk 00:15:44]} {[%emt 00:00:02]} Nxe4
{[%clk 00:15:15]} {[%emt 00:00:01]} 14. Qd3 {[%clk 00:15:46]} {[%emt 00:00:01]}
f5 {[%clk 00:15:13]} {[%emt 00:00:08]} 15. c4 {[%clk 00:15:18]} {[%emt
00:00:34]} Qc7 {[%clk 00:15:14]} {[%emt 00:00:04]} 16. Rab1 {[%clk 00:15:13]}
{[%emt 00:00:10]} Rc8 {[%clk 00:14:43]} {[%emt 00:00:35]} 17. Nd2 {[%clk
00:13:27]} {[%emt 00:01:52]} Nec5 {[%clk 00:14:24]} {[%emt 00:00:24]} 18. Qa3
{[%clk 00:13:16]} {[%emt 00:00:16]} h6 {[%clk 00:13:21]} {[%emt 00:01:09]} 19.
h3 {[%clk 00:12:21]} {[%emt 00:01:00]} Bd8 {[%clk 00:12:25]} {[%emt 00:01:01]}
20. Red1 {[%clk 00:09:24]} {[%emt 00:03:02]} Be7 {[%clk 00:09:40]} {[%emt
00:02:49]} 21. Nb3 {[%clk 00:06:52]} {[%emt 00:02:37]} Ne4 {[%clk 00:09:43]}
{[%emt 00:00:03]} 22. Nd2 {[%emt 00:00:19]} Nec5 {[%clk 00:09:30]} 23. Nb3
{[%clk 00:06:17]} {[%emt 00:00:43]} Ne4 {[%clk 00:09:23]} {[%emt 00:00:12]} 24.
Nd2 {[%clk 00:06:21]} {[%emt 00:00:01]} Ndf6 {[%clk 00:06:34]} {[%emt
00:02:54]} 25. Nxe4 {[%clk 00:06:13]} {[%emt 00:00:13]} Nxe4 {[%clk 00:06:38]}
{[%emt 00:00:02]} 26. Qb2 {[%clk 00:03:57]} {[%emt 00:02:21]} f4 {[%clk
00:04:16]} {[%emt 00:02:27]} 27. Ba7 {[%clk 00:03:24]} {[%emt 00:00:37]} Ra8
{[%clk 00:04:07]} {[%emt 00:00:14]} 28. Qxb7 {[%clk 00:02:58]} {[%emt
00:00:31]} Qxb7 {[%clk 00:00:14]} {[%emt 00:03:58]} 29. Rxb7 {[%clk 00:03:01]}
Bh4 {[%clk 00:00:08]} {[%emt 00:00:12]} 30. Bf3 {[%clk 00:02:33]} {[%emt
00:00:33]} Ng5 {[%clk 00:00:08]} {[%emt 00:00:06]} 31. Rxg7+ {[%clk 00:02:17]}
{[%emt 00:00:21]} Kxg7 {[%clk 00:00:12]} 32. Bxa8 {[%clk 00:02:20]} {[%emt
00:00:02]} Bxc4 {[%clk 00:00:15]} {[%emt 00:00:02]} 33. Rxd6 {[%clk 00:02:17]}
{[%emt 00:00:08]} e4 {[%clk 00:00:20]} 34. Rd4 {[%clk 00:01:35]} {[%emt
00:00:47]} Be2 {[%clk 00:00:14]} {[%emt 00:00:10]} 35. Bxe4 {[%clk 00:01:27]}
{[%emt 00:00:12]} Ne6 {[%clk 00:00:17]} {[%emt 00:00:03]} 36. Rd6 {[%clk
00:01:23]} {[%emt 00:00:10]} 1-0

[Event "Rapid Tournament (RAP)"]
[Site "Biel, Switzerland"]
[Date "2026.07.12"]
[Round "4.2"]
[White "Gloeckler, Christian"]
[Black "Bu, Xiangzhi"]
[Result "0-1"]
[TimeControl "15 + 5"]
[WhiteTitle "-"]
[BlackTitle "-"]
[WhiteFideId "34608966"]
[BlackFideId "8601445"]
[WhiteElo "2332"]
[BlackElo "2583"]

1. Nf3 {[%clk 00:15:07]} {[%emt 00:00:02]} Nf6 {[%clk 00:15:09]} {[%emt
00:00:02]} 2. c4 {[%clk 00:15:11]} {[%emt 00:00:04]} e6 {[%clk 00:15:13]} 3. b3
{[%clk 00:15:15]} d5 {[%clk 00:15:17]} {[%emt 00:00:01]} 4. Bb2 {[%clk
00:15:18]} c5 {[%clk 00:15:20]} {[%emt 00:00:01]} 5. cxd5 {[%clk 00:15:22]}
{[%emt 00:00:03]} exd5 {[%clk 00:15:24]} 6. g3 {[%clk 00:15:26]} {[%emt
00:00:01]} Nc6 {[%clk 00:15:26]} {[%emt 00:00:03]} 7. Bg2 {[%clk 00:15:30]}
{[%emt 00:00:01]} d4 {[%clk 00:15:22]} {[%emt 00:00:09]} 8. O-O {[%clk
00:15:31]} {[%emt 00:00:03]} Bd6 {[%clk 00:15:25]} {[%emt 00:00:02]} 9. Na3
{[%clk 00:15:22]} {[%emt 00:00:14]} O-O {[%clk 00:15:28]} {[%emt 00:00:02]} 10.
Nc4 {[%clk 00:15:02]} {[%emt 00:00:24]} Bf5 {[%clk 00:15:15]} {[%emt 00:00:18]}
11. e3 {[%clk 00:13:26]} {[%emt 00:01:42]} Bc7 {[%clk 00:12:08]} {[%emt
00:03:13]} 12. exd4 {[%clk 00:12:37]} {[%emt 00:00:53]} cxd4 {[%clk 00:12:08]}
{[%emt 00:00:04]} 13. Re1 {[%clk 00:12:41]} {[%emt 00:00:01]} Qd7 {[%clk
00:10:58]} {[%emt 00:01:16]} 14. Nfe5 {[%clk 00:09:48]} {[%emt 00:02:59]} Nxe5
{[%clk 00:11:00]} {[%emt 00:00:02]} 15. Nxe5 {[%clk 00:09:51]} {[%emt
00:00:02]} Bxe5 {[%clk 00:11:01]} {[%emt 00:00:05]} 16. Rxe5 {[%clk 00:09:55]}
Rae8 {[%clk 00:09:50]} {[%emt 00:01:16]} 17. Rxe8 {[%clk 00:06:59]} {[%emt
00:03:00]} Rxe8 {[%clk 00:09:51]} {[%emt 00:00:03]} 18. Qf1 {[%clk 00:07:03]}
{[%emt 00:00:01]} Ne4 {[%clk 00:07:15]} {[%emt 00:02:41]} 19. Re1 {[%clk
00:06:09]} {[%emt 00:01:00]} d3 {[%clk 00:07:16]} {[%emt 00:00:04]} 20. Bc1
{[%clk 00:03:18]} {[%emt 00:02:56]} b6 {[%clk 00:02:29]} {[%emt 00:04:53]} 21.
Re3 {[%clk 00:02:55]} {[%emt 00:00:27]} Ng5 {[%clk 00:02:08]} {[%emt 00:00:26]}
22. Qe1 {[%emt 00:00:57]} Rc8 {[%clk 00:01:45]} 23. Bb2 {[%clk 00:01:40]}
{[%emt 00:00:56]} Ne6 {[%clk 00:00:47]} {[%emt 00:01:04]} 24. Bf3 {[%clk
00:00:58]} {[%emt 00:00:47]} h6 {[%clk 00:00:31]} {[%emt 00:00:21]} 25. Re5
{[%clk 00:00:37]} {[%emt 00:00:25]} Ng5 {[%clk 00:00:26]} {[%emt 00:00:10]} 26.
Bg2 {[%clk 00:00:29]} {[%emt 00:00:13]} Rc2 {[%clk 00:00:17]} {[%emt 00:00:14]}
27. Re7 {[%clk 00:00:16]} {[%emt 00:00:18]} Qd6 {[%clk 00:00:17]} {[%emt
00:00:05]} 28. Re8+ {[%clk 00:00:13]} {[%emt 00:00:07]} Kh7 {[%clk 00:00:21]}
29. Be5 {[%clk 00:00:17]} {[%emt 00:00:02]} Qd7 {[%clk 00:00:22]} {[%emt
00:00:04]} 30. Rb8 {[%clk 00:00:16]} {[%emt 00:00:06]} Bg4 {[%clk 00:00:20]}
{[%emt 00:00:07]} 31. Bf4 {[%clk 00:00:06]} {[%emt 00:00:15]} Nf3+ {[%clk
00:00:20]} {[%emt 00:00:05]} 32. Bxf3 {[%clk 00:00:10]} {[%emt 00:00:01]} Bxf3
{[%clk 00:00:24]} 33. Qf1 {[%clk 00:00:10]} {[%emt 00:00:05]} Be2 {[%clk
00:00:18]} {[%emt 00:00:12]} 34. Qe1 {[%clk 00:00:10]} {[%emt 00:00:05]} Qc6
{[%clk 00:00:12]} {[%emt 00:00:10]} 0-1

[Event "Rapid Tournament (RAP)"]
[Site "Biel, Switzerland"]
[Date "2026.07.12"]
[Round "4.3"]
[White "Ganguly, Surya Shekhar"]
[Black "Savitha, Shri B"]
[Result "0-1"]
[TimeControl "15 + 5"]
[WhiteTitle "-"]
[BlackTitle "-"]
[WhiteFideId "5002150"]
[BlackFideId "35061887"]
[WhiteElo "2545"]
[BlackElo "2317"]

1. Nf3 {[%clk 00:15:06]} {[%emt 00:00:02]} c5 {[%emt 00:03:07]} 2. c4 {[%clk
00:15:08]} Nc6 {[%clk 00:12:08]} {[%emt 00:00:05]} 3. Nc3 {[%clk 00:15:10]}
{[%emt 00:00:02]} Nf6 {[%clk 00:12:11]} {[%emt 00:00:02]} 4. d4 {[%clk
00:15:13]} {[%emt 00:00:02]} cxd4 {[%clk 00:11:52]} {[%emt 00:00:24]} 5. Nxd4
{[%clk 00:15:16]} {[%emt 00:00:01]} g6 {[%clk 00:11:56]} {[%emt 00:00:02]} 6.
e4 {[%clk 00:15:17]} {[%emt 00:00:03]} d6 {[%clk 00:11:48]} {[%emt 00:00:13]} 7.
Be2 {[%clk 00:15:10]} {[%emt 00:00:11]} Bg7 {[%clk 00:11:48]} {[%emt 00:00:03]}
8. Be3 {[%clk 00:15:13]} {[%emt 00:00:03]} O-O {[%clk 00:11:51]} {[%emt
00:00:03]} 9. O-O {[%clk 00:15:16]} {[%emt 00:00:02]} Bd7 {[%clk 00:11:36]}
{[%emt 00:00:20]} 10. Nc2 {[%clk 00:15:19]} {[%emt 00:00:02]} a6 {[%clk
00:11:34]} {[%emt 00:00:08]} 11. f3 {[%clk 00:15:03]} {[%emt 00:00:20]} Ne5
{[%clk 00:11:25]} {[%emt 00:00:15]} 12. Qd2 {[%clk 00:12:52]} {[%emt 00:02:15]}
Rc8 {[%clk 00:10:14]} {[%emt 00:01:16]} 13. Na3 {[%clk 00:12:12]} {[%emt
00:00:44]} Re8 {[%clk 00:09:38]} {[%emt 00:00:42]} 14. Rac1 {[%clk 00:11:21]}
{[%emt 00:00:56]} Qa5 {[%clk 00:09:31]} {[%emt 00:00:13]} 15. h3 {[%clk
00:09:59]} {[%emt 00:01:27]} Be6 {[%clk 00:07:55]} {[%emt 00:01:41]} 16. Nd5
{[%clk 00:09:38]} {[%emt 00:00:26]} Qxd2 {[%clk 00:07:58]} {[%emt 00:00:02]} 17.
Bxd2 {[%clk 00:09:41]} {[%emt 00:00:02]} Nfd7 {[%clk 00:07:52]} {[%emt
00:00:11]} 18. Bc3 {[%clk 00:06:39]} {[%emt 00:03:07]} Nc5 {[%clk 00:06:31]}
{[%emt 00:01:26]} 19. Rfd1 {[%clk 00:06:10]} {[%emt 00:00:34]} f5 {[%clk
00:05:18]} {[%emt 00:01:19]} 20. f4 {[%clk 00:05:36]} {[%emt 00:00:39]} Nc6
{[%clk 00:05:03]} {[%emt 00:00:21]} 21. exf5 {[%clk 00:05:33]} {[%emt
00:00:08]} Bxf5 {[%clk 00:04:58]} {[%emt 00:00:10]} 22. Bxg7 {[%clk 00:04:17]}
{[%emt 00:01:21]} Kxg7 {[%clk 00:05:02]} {[%emt 00:00:01]} 23. g4 {[%clk
00:04:00]} {[%emt 00:00:22]} Be4 {[%clk 00:04:38]} {[%emt 00:00:29]} 24. Nb1
{[%clk 00:02:23]} {[%emt 00:01:41]} Ne6 {[%clk 00:04:11]} {[%emt 00:00:32]} 25.
Nbc3 {[%clk 00:02:15]} {[%emt 00:00:13]} Ncd4 {[%clk 00:03:31]} {[%emt
00:00:46]} 26. Kf2 {[%clk 00:01:56]} {[%emt 00:00:24]} Nxe2 {[%clk 00:02:32]}
{[%emt 00:01:04]} 27. Nxe2 {[%clk 00:01:59]} {[%emt 00:00:01]} Bxd5 {[%clk
00:01:43]} {[%emt 00:00:55]} 28. cxd5 {[%clk 00:02:01]} {[%emt 00:00:02]} Nc5
{[%clk 00:01:47]} {[%emt 00:00:01]} 29. Kf3 {[%clk 00:01:58]} {[%emt 00:00:07]}
Kf6 {[%clk 00:01:19]} {[%emt 00:00:34]} 30. Nd4 {[%clk 00:01:27]} {[%emt
00:00:36]} Na4 {[%clk 00:01:23]} {[%emt 00:00:01]} 31. g5+ {[%clk 00:00:47]}
{[%emt 00:00:44]} Kf7 {[%clk 00:01:27]} {[%emt 00:00:01]} 32. Rxc8 {[%clk
00:00:29]} {[%emt 00:00:24]} Rxc8 {[%clk 00:01:31]} {[%emt 00:00:01]} 33. Rd2
{[%clk 00:00:33]} Rc1 {[%clk 00:01:19]} {[%emt 00:00:17]} 34. Ne2 {[%clk
00:00:32]} {[%emt 00:00:06]} Ra1 {[%clk 00:01:15]} {[%emt 00:00:09]} 35. b3
{[%clk 00:00:33]} {[%emt 00:00:03]} Nc5 {[%clk 00:01:08]} {[%emt 00:00:12]} 36.
Ng3 {[%clk 00:00:10]} {[%emt 00:00:29]} a5 {[%clk 00:01:08]} {[%emt 00:00:05]}
37. h4 {[%clk 00:00:10]} {[%emt 00:00:04]} Rg1 {[%clk 00:01:06]} {[%emt
00:00:07]} 38. Rd4 {[%clk 00:00:08]} {[%emt 00:00:08]} Rc1 {[%clk 00:00:57]}
{[%emt 00:00:14]} 39. Rd2 {[%clk 00:00:11]} {[%emt 00:00:02]} Rc3+ {[%clk
00:01:01]} 0-1